{"text_format":"1","workbook":"xlsx","n_sheets":2,"sheets":["概要","情報"],"not_rendered":{"charts":0,"images":0,"macros":1,"external_links":0,"defined_names":0,"comments":0,"pivot_tables":0},"unopened":[],"bounds":{"document_bytes":16777216,"sheet_cells":100000,"rows_first":2000,"rows_last":500,"rows_between":2000,"halvings":0,"cell_chars":16384,"cell_head_chars":4096},"cells_cut":0,"cells_raw":0,"read":"whole","date_system":"1900"}

{"sheet":"概要","index":0,"n_rows":10,"n_cols":4,"rows_kept":10,"cut":false,"hidden":false,"merged":[]}
[]
[null,"概要"]
[null,null,"文字列長をそのままにしながら置換する。"]
[null,null,"置換自体は Vim コマンドを用いる。"]
[]
[null,"使い方"]
[null,null,"①","「最大文字数」欄を記入。"]
[null,null,"②","「検索対象文字列」と「置換文字列」欄を記入。"]
[null,null,"③","「Vim コマンド列」のコマンドをコピーする。"]
[null,null,"④","Vim を起動して、コピーしたコマンドを実行する。"]

{"sheet":"情報","index":1,"n_rows":107,"n_cols":6,"rows_kept":107,"cut":false,"hidden":false,"merged":[]}
[]
[null,null,"最大文字数",31]
[]
[null,null,"Vim コマンド列",{"$f":"concstr($E$8:$E$107)","v":"%s/AAAAAA,         /BSWD_SD_u1PDR03,/ge | %s/BBB,             /BSWD_SD_u1PDDR03,/ge | %s/CCC,            /BSWD_SD_u1PDR01,/ge | %s/DDD,             /BSWD_SD_u1PDDR01,/ge | %s/EEEEEEEEEEEEEEEEEEEEE,/BSWD_SD_u1PDR00,      /ge | %s/F,               /BSWD_SD_u1PDDR00,/ge | %s/BIT5,                /U1S_DIO_CH_MASK_BIT5,/ge | %s/BBBBBBBBBBBBBBBBBIT5,/U1S_DIO_CH_MASK_BIT3,/ge | %s/Dummyyyyyyyyyyyyyyyyyyyy,     /U1S_DIO_DUMMYaaaaaaaaaaaaaaaa,/ge"},null," "]
[]
[null,null,null,"※セル背景が赤い場合は、最大文字数を超えています"]
[null,"No","検索対象文字列","置換文字列","Vimコマンド"]
[null,1,"AAAAAA,","BSWD_SD_u1PDR03,",{"$f":"IF(C8=\"\",\n\"\",\n\"%s/\"&\nC8&REPT(\" \",MAX(LEN($C8),LEN($D8))-LEN(C8))&\n\"/\"&\nD8&REPT(\" \",MAX(LEN($C8),LEN($D8))-LEN(D8))&\n\"/ge\"&\nIF(COUNTA(C$8:C$103)>$B8,\" | \",\"\")\n)","v":"%s/AAAAAA,         /BSWD_SD_u1PDR03,/ge | "}]
[null,{"$f":"B8+1","v":2},"BBB,","BSWD_SD_u1PDDR03,",{"$f":"IF(C9=\"\",\n\"\",\n\"%s/\"&\nC9&REPT(\" \",MAX(LEN($C9),LEN($D9))-LEN(C9))&\n\"/\"&\nD9&REPT(\" \",MAX(LEN($C9),LEN($D9))-LEN(D9))&\n\"/ge\"&\nIF(COUNTA(C$8:C$103)>$B9,\" | \",\"\")\n)","v":"%s/BBB,             /BSWD_SD_u1PDDR03,/ge | "}]
[null,{"$f":"B9+1","v":3},"CCC,","BSWD_SD_u1PDR01,","%s/CCC,            /BSWD_SD_u1PDR01,/ge | "]
[null,4,"DDD,","BSWD_SD_u1PDDR01,","%s/DDD,             /BSWD_SD_u1PDDR01,/ge | "]
[null,5,"EEEEEEEEEEEEEEEEEEEEE,","BSWD_SD_u1PDR00,","%s/EEEEEEEEEEEEEEEEEEEEE,/BSWD_SD_u1PDR00,      /ge | "]
[null,6,"F,","BSWD_SD_u1PDDR00,","%s/F,               /BSWD_SD_u1PDDR00,/ge | "]
[null,7,"BIT5,","U1S_DIO_CH_MASK_BIT5,","%s/BIT5,                /U1S_DIO_CH_MASK_BIT5,/ge | "]
[null,8,"BBBBBBBBBBBBBBBBBIT5,","U1S_DIO_CH_MASK_BIT3,","%s/BBBBBBBBBBBBBBBBBIT5,/U1S_DIO_CH_MASK_BIT3,/ge | "]
[null,9,"Dummyyyyyyyyyyyyyyyyyyyy,","U1S_DIO_DUMMYaaaaaaaaaaaaaaaa,","%s/Dummyyyyyyyyyyyyyyyyyyyy,     /U1S_DIO_DUMMYaaaaaaaaaaaaaaaa,/ge"]
[null,10,null,null,""]
[null,11,null,null,""]
[null,12,null,null,""]
[null,13,null,null,""]
[null,14,null,null,""]
[null,15,null,null,""]
[null,16,null,null,""]
[null,17,null,null,""]
[null,18,null,null,""]
[null,19,null,null,""]
[null,20,null,null,""]
[null,21,null,null,""]
[null,22,null,null,""]
[null,23,null,null,""]
[null,24,null,null,""]
[null,25,null,null,""]
[null,26,null,null,""]
[null,27,null,null,""]
[null,28,null,null,""]
[null,29,null,null,""]
[null,30,null,null,""]
[null,31,null,null,""]
[null,32,null,null,""]
[null,33,null,null,""]
[null,34,null,null,""]
[null,35,null,null,""]
[null,36,null,null,""]
[null,37,null,null,""]
[null,38,null,null,""]
[null,39,null,null,""]
[null,40,null,null,""]
[null,41,null,null,""]
[null,42,null,null,""]
[null,43,null,null,""]
[null,44,null,null,""]
[null,45,null,null,""]
[null,46,null,null,""]
[null,47,null,null,""]
[null,48,null,null,""]
[null,49,null,null,""]
[null,50,null,null,""]
[null,51,null,null,""]
[null,52,null,null,""]
[null,53,null,null,""]
[null,54,null,null,""]
[null,55,null,null,""]
[null,56,null,null,""]
[null,57,null,null,""]
[null,58,null,null,""]
[null,59,null,null,""]
[null,60,null,null,""]
[null,61,null,null,""]
[null,62,null,null,""]
[null,63,null,null,""]
[null,64,null,null,""]
[null,65,null,null,""]
[null,66,null,null,{"$f":"IF(C73=\"\",\n\"\",\n\"%s/\"&\nC73&REPT(\" \",MAX(LEN($C73),LEN($D73))-LEN(C73))&\n\"/\"&\nD73&REPT(\" \",MAX(LEN($C73),LEN($D73))-LEN(D73))&\n\"/ge\"&\nIF(COUNTA(C$8:C$103)>$B73,\" | \",\"\")\n)","v":""}]
[null,{"$f":"B73+1","v":67},null,null,""]
[null,68,null,null,""]
[null,69,null,null,""]
[null,70,null,null,""]
[null,71,null,null,""]
[null,72,null,null,""]
[null,73,null,null,""]
[null,74,null,null,""]
[null,75,null,null,""]
[null,76,null,null,""]
[null,77,null,null,""]
[null,78,null,null,""]
[null,79,null,null,""]
[null,80,null,null,""]
[null,81,null,null,""]
[null,82,null,null,""]
[null,83,null,null,""]
[null,84,null,null,""]
[null,85,null,null,""]
[null,86,null,null,""]
[null,87,null,null,""]
[null,88,null,null,""]
[null,89,null,null,""]
[null,90,null,null,""]
[null,91,null,null,""]
[null,92,null,null,""]
[null,93,null,null,""]
[null,94,null,null,""]
[null,95,null,null,""]
[null,96,null,null,""]
[null,97,null,null,""]
[null,98,null,null,""]
[null,99,null,null,""]
[null,100,null,null,""]